bitfinex/quotes_BTCUSD_20240821
["timestamp","ask_amount","ask_price","bid_price","bid_amount"]
[1724220609312,0.20131443,59602.0,59601.0,0.0019042]
[1724220615312,0.21172827,59602.0,59601.0,0.0019042]
[1724220616594,0.29292827,59602.0,59601.0,0.0019042]
[1724220617939,0.37672827,59602.0,59601.0,0.0019042]
[1724220618357,0.36631443,59602.0,59601.0,0.0019042]
[1724220618562,0.42261443,59602.0,59601.0,0.0019042]
[1724220618732,0.22431443,59602.0,59601.0,0.0019042]
[1724220618939,0.29626113,59602.0,59601.0,0.0019042]
[1724220635935,0.15516113,59602.0,59601.0,0.0019042]
[1724220636135,0.15516113,59602.0,59601.0,0.1457042]
[1724220636136,0.17226113,59602.0,59601.0,0.1457042]
[1724220636674,0.15826113,59602.0,59601.0,0.1447042]
[1724220637100,0.14426113,59602.0,59601.0,0.1447042]
[1724220637505,0.14426113,59602.0,59601.0,0.1457042]
[1724220637506,0.18854442,59602.0,59601.0,0.1457042]
[1724220637742,0.17454442,59602.0,59601.0,0.1457042]
[1724220638138,0.17026113,59602.0,59601.0,0.1457042]
[1724220638543,0.17026113,59602.0,59601.0,0.1447042]
[1724220638544,0.15626113,59602.0,59601.0,0.1447042]
[1724220639908,0.16726113,59602.0,59601.0,0.1457042]
[1724220640337,0.16726113,59602.0,59601.0,0.3134862]
[1724220640536,0.05016113,59602.0,59601.0,0.9846142]
[1724220641063,0.05016113,59602.0,59601.0,1.3221782]
[1724220641260,0.05016113,59602.0,59601.0,1.3241782]
[1724220641865,0.03916113,59602.0,59601.0,1.3231782]
[1724220642117,0.03916113,59602.0,59601.0,1.3211782]
[1724220642551,0.03916113,59602.0,59601.0,1.3231782]
[1724220642770,0.03916113,59602.0,59601.0,1.3201782]
[1724220642970,0.02716113,59602.0,59601.0,1.3211782]
[1724220643410,0.03416113,59602.0,59601.0,1.3221782]
[1724220643880,0.04516113,59602.0,59601.0,1.3231782]
[1724220644307,0.04516113,59602.0,59601.0,1.3251782]
[1724220644516,0.03416113,59602.0,59601.0,1.3578282]
[1724220644716,0.04116113,59602.0,59601.0,1.3588282]
[1724220645133,0.04116113,59602.0,59601.0,1.3578282]
[1724220645339,0.03416113,59602.0,59601.0,1.3578282]
[1724220645522,0.04116113,59602.0,59601.0,1.3588282]
[1724220646976,0.02716113,59602.0,59601.0,1.3568282]
[1724220647377,0.02916113,59602.0,59601.0,1.3708282]
[1724220647634,0.02816113,59602.0,59601.0,1.3638282]
[1724220647835,0.02916113,59602.0,59601.0,1.3718282]
[1724220648393,0.02916113,59602.0,59601.0,1.7073922]
[1724220650175,0.02716113,59602.0,59601.0,1.6923922]
[1724220650381,0.02816113,59602.0,59601.0,1.7013922]
[1724220650583,0.02916113,59602.0,59601.0,1.7083922]
[1724220657629,0.02916113,59602.0,59601.0,1.3381782]
[1724220658702,0.02816113,59602.0,59601.0,1.3321782]
[1724220659198,0.02916113,59602.0,59601.0,1.3391782]
[1724220659422,0.02816113,59602.0,59601.0,1.3301782]
[1724220659901,0.02916113,59602.0,59601.0,1.3391782]
[1724220663493,0.02916113,59602.0,59601.0,0.8558142]
[1724220664194,0.02916113,59602.0,59601.0,0.8568142]
[1724220664423,0.02916113,59602.0,59601.0,0.8488142]
[1724220664424,0.02816113,59602.0,59601.0,0.8488142]
[1724220664662,0.02816113,59602.0,59601.0,0.8398142]
[1724220664663,0.04399724,59602.0,59601.0,0.8398142]
[1724220664922,0.04399724,59602.0,59601.0,0.8488142]
[1724220665661,0.04399724,59602.0,59601.0,0.8448142]
[1724220665919,0.02716113,59602.0,59601.0,0.8488142]
[1724220666579,0.02716113,59602.0,59601.0,0.9957142]
[1724220666801,0.02716113,59602.0,59601.0,1.3322782]
[1724220666932,0.02716113,59602.0,59601.0,1.3312782]
[1724220667127,0.02716113,59602.0,59601.0,1.3262782]
[1724220667536,0.02816113,59602.0,59601.0,1.3322782]
[1724220668241,0.02816113,59602.0,59601.0,1.3332782]
[1724220669526,0.02816113,59602.0,59601.0,1.3352782]
[1724220669677,0.02816113,59602.0,59601.0,1.3322782]
[1724220670287,0.02816113,59602.0,59601.0,1.3332782]
[1724220671286,0.02816113,59602.0,59601.0,1.3322782]
[1724220671501,0.05444045,59602.0,59601.0,1.3322782]
[1724220671706,0.02816113,59602.0,59601.0,1.3322782]
[1724220671898,0.0544405,59602.0,59601.0,1.3322782]
[1724220672243,0.0544405,59602.0,59601.0,1.3332782]
[1724220673602,0.0544405,59602.0,59601.0,1.3322782]
[1724220675044,0.0544405,59602.0,59601.0,1.3332782]
[1724220675246,0.0544405,59602.0,59601.0,1.3362782]
[1724220675454,0.0544405,59602.0,59601.0,1.3332782]
[1724220675859,0.0544405,59602.0,59601.0,1.3342782]
[1724220676282,0.0544405,59602.0,59601.0,1.3362782]
[1724220676947,0.0544405,59602.0,59601.0,1.3342782]
[1724220677187,0.0544405,59602.0,59601.0,1.3332782]
[1724220678468,0.0544405,59602.0,59601.0,1.3342782]
[1724220678676,0.0544405,59602.0,59601.0,1.3332782]
[1724220679328,0.0544405,59602.0,59601.0,1.3342782]
[1724220679550,0.0544405,59602.0,59601.0,1.6718422]
[1724220679802,0.02816113,59602.0,59601.0,1.6718422]
[1724220681450,0.0279592,59602.0,59601.0,1.6718422]
[1724220689404,0.0279592,59602.0,59601.0,1.2668782]
[1724220689783,0.05423688,59602.0,59601.0,1.1863782]
[1724220690773,0.05423688,59602.0,59601.0,1.1873782]
[1724220690986,0.05423688,59602.0,59601.0,1.1893782]
[1724220692584,0.05423688,59602.0,59601.0,1.1873782]
[1724220693366,0.05423688,59602.0,59601.0,1.1863782]
[1724220693796,0.05423688,59602.0,59601.0,1.1873782]
[1724220693972,0.05423688,59602.0,59601.0,1.1893782]
[1724220694331,0.0279592,59602.0,59601.0,1.2722782]
[1724220694555,0.0279592,59602.0,59601.0,1.3356782]
[1724220694898,0.0279592,59602.0,59601.0,1.6712422]
[1724220695317,0.0229592,59602.0,59601.0,1.6712422]
[1724220695523,0.001822,59602.0,59601.0,1.6712422]
[1724220695722,0.001822,59602.0,59601.0,1.3356782]
[1724220696957,0.001822,59602.0,59601.0,1.6712422]
[1724220698755,0.02815588,59602.0,59601.0,1.6712422]
[1724220700437,0.02815588,59602.0,59601.0,1.3356782]
[1724220702818,0.02815588,59602.0,59601.0,1.6712422]
[1724220703732,0.02815588,59602.0,59601.0,1.65808701]
[1724220704583,0.02815588,59602.0,59601.0,1.77508701]
[1724220705883,0.02815588,59602.0,59601.0,1.43952301]
[1724220707710,0.02815588,59602.0,59601.0,1.32252301]
[1724220709279,0.02815588,59602.0,59601.0,1.65808701]
[1724220709526,0.02815588,59602.0,59601.0,1.32252301]
[1724220710114,0.02815588,59602.0,59601.0,1.43952301]
[1724220710560,0.02815588,59602.0,59601.0,1.77508701]
[1724220711299,0.02815588,59602.0,59601.0,1.80873701]
[1724220711685,0.02815588,59602.0,59601.0,1.88411472]
[1724220712086,0.02715588,59602.0,59601.0,1.87811472]
[1724220712326,0.02715588,59602.0,59601.0,1.87411472]
[1724220712655,0.02915588,59602.0,59601.0,2.22067872]
[1724220712945,0.02815588,59602.0,59601.0,2.40279226]
[1724220713182,0.02815588,59602.0,59601.0,2.27716274]
[1724220713796,0.02815588,59602.0,59601.0,2.27806694]
[1724220713967,0.02815588,59602.0,59601.0,2.61363094]
[1724220714611,0.02815588,59602.0,59601.0,2.78903094]
[1724220715198,0.02815588,59602.0,59601.0,2.92549063]
[1724220715399,0.02815588,59602.0,59601.0,2.94849063]
[1724220717662,0.02815588,59602.0,59601.0,2.94836639]
[1724220718376,0.02715588,59602.0,59601.0,2.93136639]
[1724220718577,0.02815588,59602.0,59601.0,2.94136639]
[1724220718810,0.02915588,59602.0,59601.0,2.95236639]
[1724220719171,1e-06,59608.0,59607.0,2.219601]
[1724220719374,0.01756831,59624.0,59623.0,0.681411]
[1724220719608,0.0643,59637.0,59636.0,0.838417]
[1724220719803,0.49229154,59642.0,59638.0,0.84039]
[1724220719804,0.065121,59640.0,59638.0,0.84039]
[1724220720010,0.02708457,59639.0,59638.0,1.175746]
[1724220720222,0.000822,59639.0,59638.0,1.175746]
[1724220720424,0.02714256,59639.0,59638.0,1.175746]
[1724220720627,0.02714256,59639.0,59638.0,1.177746]
[1724220721769,0.02714256,59639.0,59638.0,1.258546]
[1724220722378,0.02714256,59639.0,59638.0,1.990058]
[1724220722584,0.02714256,59639.0,59638.0,1.754702]
[1724220723385,0.02714256,59639.0,59638.0,1.788352]
[1724220723904,0.02714256,59639.0,59638.0,2.123708]
[1724220724315,0.02714256,59639.0,59638.0,2.484064]
[1724220724491,5.6e-07,59640.0,59639.0,0.401]
[1724220724673,5.6e-07,59640.0,59639.0,3.02316938]
[1724220724909,5.6e-07,59640.0,59639.0,3.35852038]
[1724220725179,5.6e-07,59640.0,59639.0,2.98632611]
[1724220725902,0.00841,59659.0,59658.0,1.656698]
[1724220727015,0.00841,59659.0,59658.0,1.690348]
[1724220727446,0.00841,59659.0,59658.0,2.048592]
[1724220727598,0.00841,59659.0,59658.0,2.148592]
[1724220727812,0.00841,59659.0,59658.0,2.149592]
[1724220728094,0.03471867,59659.0,59658.0,2.148592]
[1724220728489,0.03471867,59659.0,59658.0,2.156592]
[1724220729131,6.7e-07,59659.0,59658.0,2.50292217]
[1724220729330,0.00822,59682.0,59661.0,2.425898]
[1724220729331,1.7e-07,59662.0,59661.0,2.425898]
[1724220729642,1.7e-07,59662.0,59661.0,2.92781788]
[1724220730001,1.7e-07,59662.0,59661.0,3.22021788]
[1724220730221,1e-06,59668.0,59667.0,2.183754]
[1724220730427,0.00822,59682.0,59678.0,0.940346]
[1724220730627,0.00822,59682.0,59678.0,2.102039]
[1724220730877,0.00822,59682.0,59678.0,1.809639]
[1724220731076,0.00822,59682.0,59678.0,1.786639]
[1724220731402,0.00822,59682.0,59678.0,2.4836775]
[1724220731604,0.00822,59682.0,59678.0,2.43717]
[1724220732225,0.00822,59682.0,59678.0,2.44417]
[1724220732434,0.00822,59682.0,59678.0,2.43717]
[1724220732645,0.03470791,59679.0,59678.0,2.43717]
[1724220732849,0.03470791,59679.0,59678.0,2.115039]
[1724220733526,0.03470791,59679.0,59678.0,2.102039]
[1724220733712,0.03470791,59679.0,59678.0,1.809639]
[1724220733947,0.03470791,59679.0,59678.0,1.834639]
[1724220734130,0.03470791,59679.0,59678.0,1.820639]
[1724220734341,0.00016752,59693.0,59678.0,1.820639]
[1724220734342,0.00016752,59693.0,59692.0,0.838632]
[1724220734961,0.09106407,59693.0,59692.0,0.837632]
[1724220736206,0.09063554,59693.0,59692.0,0.837632]
[1724220736823,0.09063554,59693.0,59692.0,0.82476136]
[1724220737041,0.10052109,59693.0,59692.0,0.48970836]
[1724220737254,0.10052109,59693.0,59692.0,0.001]
[1724220737255,0.09768381,59693.0,59692.0,0.001]
[1724220737372,0.09768381,59693.0,59688.0,0.335073]
[1724220737373,0.0813,59692.0,59688.0,0.335073]
[1724220737576,0.0813,59692.0,59676.0,0.003]
[1724220737577,0.1419,59690.0,59680.0,0.001]
[1724220737776,0.08346272,59689.0,59688.0,0.335075]
[1724220738002,0.08346272,59689.0,59680.0,0.001]
[1724220738378,0.08346272,59689.0,59688.0,0.167537]
[1724220738828,0.08346272,59689.0,59688.0,0.502612]
[1724220739028,0.0813,59689.0,59688.0,0.502612]
[1724220739980,0.0813,59689.0,59688.0,0.840687]
[1724220740196,0.0606,59690.0,59689.0,1.173745]
[1724220740643,0.0868985,59690.0,59689.0,0.836675]
[1724220740835,0.0868985,59690.0,59689.0,0.839675]
[1724220741298,0.0908985,59690.0,59689.0,0.839675]
[1724220741526,0.0938985,59690.0,59689.0,0.837675]
[1724220741803,0.0938985,59690.0,59689.0,0.836675]
[1724220742004,0.0332985,59690.0,59689.0,0.837675]
[1724220742223,0.0332985,59690.0,59689.0,0.839675]
[1724220742425,0.0332985,59690.0,59689.0,1.174745]
[1724220743203,0.0262985,59690.0,59689.0,0.836675]
[1724220744006,0.1038985,59690.0,59689.0,0.836675]
[1724220744208,0.0262985,59690.0,59689.0,0.837675]
[1724220744414,0.0657,59696.0,59695.0,0.167518]
[1724220744812,0.17379617,59696.0,59695.0,0.502554]
[1724220745019,0.17621646,59696.0,59695.0,0.502554]
[1724220745627,0.17379617,59696.0,59695.0,0.502554]
[1724220746651,0.17379617,59696.0,59695.0,0.503554]
[1724220746795,0.17379617,59696.0,59695.0,0.504554]
[1724220747222,0.17379617,59696.0,59695.0,0.169518]
[1724220747422,0.19286779,59696.0,59695.0,0.169518]
[1724220747721,0.19528808,59696.0,59695.0,0.169518]
[1724220748145,0.19528808,59696.0,59695.0,0.504554]
[1724220748565,0.19528808,59696.0,59695.0,0.169518]
[1724220749316,0.76355355,59721.0,59695.0,0.002]
[1724220749531,0.00231027,59696.0,59695.0,0.001]
[1724220749711,0.02629687,59696.0,59695.0,0.503554]
[1724220749953,0.02629687,59696.0,59695.0,0.504554]
[1724220750161,0.02711787,59696.0,59695.0,0.503554]
[1724220750363,0.02711787,59696.0,59695.0,0.502554]
[1724220750564,0.02711787,59696.0,59695.0,0.504554]
[1724220750879,0.02711787,59696.0,59695.0,0.503554]
[1724220751082,0.02711787,59696.0,59695.0,0.504554]
[1724220752339,0.000821,59696.0,59695.0,0.83959]
[1724220752548,0.000821,59696.0,59695.0,0.84259]
[1724220752766,0.02711707,59696.0,59695.0,0.83959]
[1724220752979,0.000821,59696.0,59695.0,0.83959]
[1724220754329,1.67524738,59720.0,59710.0,0.001]
[1724220754519,1.67524738,59720.0,59719.0,0.502351]
[1724220754750,1.67524738,59720.0,59715.0,0.001]
[1724220754751,0.00203733,59719.0,59715.0,0.001]
[1724220754959,1.6577,59720.0,59715.0,0.001]
[1724220755161,0.00203733,59718.0,59715.0,0.001]
[1724220755347,1.7235,59720.0,59719.0,0.16845]
[1724220755348,1.6577,59720.0,59719.0,0.16845]
[1724220755680,1.6577,59720.0,59719.0,0.503351]
[1724220755945,1.6577,59720.0,59719.0,0.502351]
[1724220756147,1.6577,59720.0,59718.0,0.001]
[1724220756490,1.6577,59720.0,59718.0,0.168452]
[1724220756692,1.6577,59720.0,59718.0,0.001]
[1724220756901,0.00210212,59719.0,59718.0,0.168452]
[1724220757101,0.1660809,59719.0,59718.0,0.168452]
[1724220757363,0.1660809,59719.0,59718.0,0.001]
[1724220757762,0.1660809,59719.0,59716.0,0.167457]
[1724220758003,0.1660809,59719.0,59718.0,0.005]
[1724220758707,0.00210212,59719.0,59718.0,0.005]
[1724220759325,0.00210212,59719.0,59718.0,0.008]
[1724220759519,0.00210212,59719.0,59718.0,0.003]
[1724220759718,0.09470212,59719.0,59718.0,0.003]
[1724220760687,0.09470212,59719.0,59718.0,0.008]
[1724220760940,0.2586809,59719.0,59718.0,0.008]
[1724220761192,0.2586809,59719.0,59700.0,0.167503]
[1724220761193,0.0292,59715.0,59700.0,0.167503]
[1724220761389,0.0292,59715.0,59699.0,0.49229154]
[1724220761390,0.0292,59713.0,59701.0,0.1675]
[1724220761586,0.0292,59713.0,59701.0,0.001]
[1724220761587,0.02623556,59712.0,59701.0,0.001]
[1724220761790,0.02623556,59712.0,59704.0,0.167491]
[1724220761993,0.0442656,59711.0,59703.0,0.167495]
[1724220762196,0.02623556,59710.0,59697.0,0.33502]
[1724220762418,0.0628,59708.0,59700.0,0.167502]
[1724220762622,0.0628,59708.0,59698.0,0.167509]
[1724220762825,0.2924,59700.0,59695.0,0.000902]
[1724220763030,0.0292,59706.0,59695.0,0.000902]
[1724220763031,0.34789363,59706.0,59695.0,0.000902]
[1724220763183,0.12624142,59705.0,59695.0,0.000902]
[1724220763382,0.02624142,59704.0,59695.0,0.000902]
[1724220763615,0.02270987,59703.0,59700.0,0.001]
[1724220763784,0.02624142,59702.0,59700.0,0.001]
[1724220763983,0.02624142,59702.0,59698.0,0.001]
[1724220764186,0.0151037,59701.0,59698.0,0.001]
[1724220764388,0.02624142,59700.0,59698.0,0.001]
[1724220764596,0.02624142,59700.0,59695.0,0.001902]
[1724220764597,0.0958,59699.0,59695.0,0.001902]
[1724220764821,0.2924,59697.0,59695.0,0.001902]
[1724220765033,0.22204142,59696.0,59695.0,0.001902]
[1724220765235,0.27859946,59696.0,59695.0,0.001902]
[1724220765432,0.27859946,59696.0,59695.0,0.000902]
[1724220765625,0.30159946,59696.0,59695.0,0.000902]
[1724220766492,0.30759946,59696.0,59695.0,0.001902]
[1724220767120,0.30759946,59696.0,59695.0,0.002902]
[1724220767121,0.31359946,59696.0,59695.0,0.002902]
[1724220767372,0.30759946,59696.0,59695.0,0.000902]
[1724220767558,0.30159946,59696.0,59695.0,0.000902]
[1724220767761,0.30159946,59696.0,59695.0,0.001902]
[1724220767762,0.31559946,59696.0,59695.0,0.001902]
[1724220767967,0.167521,59694.0,59692.0,0.0009031]
[1724220768204,0.14924142,59693.0,59675.0,0.49229154]
[1724220768423,0.2924,59680.0,59675.0,0.49229154]
[1724220768646,0.05548142,59679.0,59670.0,0.167588]
[1724220768853,0.05754492,59679.0,59670.0,0.167588]
[1724220769068,0.02625131,59678.0,59670.0,0.167588]
[1724220769283,0.03761962,59677.0,59670.0,0.167587]
[1724220769494,0.03961877,59677.0,59670.0,0.167587]
[1724220769907,0.03761962,59677.0,59670.0,0.167587]
[1724220770110,0.03761962,59677.0,59668.0,0.167593]
[1724220770352,0.0629,59675.0,59668.0,0.167593]
[1724220770549,0.2924,59674.0,59663.0,0.335212]
[1724220770748,0.30546525,59674.0,59665.0,0.1676]
[1724220770971,0.00199915,59673.0,59665.0,0.1676]
[1724220771388,0.02630693,59672.0,59671.0,0.920027]
[1724220771978,0.02630693,59672.0,59671.0,0.924027]
[1724220772181,0.02630693,59672.0,59671.0,1.259198]
[1724220773122,1e-08,59672.0,59671.0,1.259198]
[1724220773318,0.1,59692.0,59674.0,0.001]
[1724220773549,0.1,59692.0,59680.0,0.167558]
[1724220773550,0.13216,59692.0,59680.0,0.167558]
[1724220773759,0.13216,59692.0,59678.0,0.13223]
[1724220773962,0.02630265,59688.0,59672.0,0.4781]
[1724220774209,0.02630265,59688.0,59674.0,0.001]
[1724220774443,0.02630265,59688.0,59679.0,0.164561]
[1724220775019,0.02630265,59688.0,59677.0,0.167566]
[1724220775395,0.04030265,59688.0,59677.0,0.167566]
[1724220775603,0.04030265,59688.0,59680.0,0.167559]
[1724220776668,0.04779452,59688.0,59680.0,0.167559]
[1724220776869,0.04779452,59688.0,59680.0,0.001]
[1724220776870,0.06079452,59688.0,59680.0,0.001]
[1724220777073,0.07479452,59688.0,59680.0,0.001]
[1724220777272,0.04030265,59688.0,59679.0,0.167562]
[1724220777529,0.03930265,59688.0,59680.0,0.001]
[1724220777765,0.01817587,59687.0,59680.0,0.001]
[1724220777904,0.31057587,59687.0,59675.0,0.167573]
[1724220778102,0.31057587,59687.0,59680.0,0.001]
[1724220778306,0.04508785,59686.0,59680.0,0.001]
[1724220779111,0.0631,59685.0,59680.0,0.001]
[1724220779432,0.0923,59685.0,59676.0,0.167571]
[1724220779631,0.04742664,59684.0,59676.0,0.167571]
[1724220779871,0.04742664,59684.0,59680.0,0.001]
[1724220780346,0.2924,59681.0,59671.0,0.000902]
[1724220780571,0.0292,59680.0,59671.0,0.000902]
[1724220780758,0.09756,59679.0,59671.0,0.000902]
[1724220781089,0.02630649,59678.0,59671.0,0.000902]
[1724220781519,0.02630649,59678.0,59672.0,0.167581]
[1724220781768,0.02630649,59678.0,59672.0,0.335163]
[1724220782137,0.00212662,59677.0,59672.0,0.0752]
[1724220782359,0.00212662,59677.0,59676.0,0.167571]
[1724220782567,0.02630649,59678.0,59676.0,0.502714]
[1724220782760,0.02630649,59678.0,59676.0,0.167571]
[1724220783444,0.008,59677.0,59676.0,0.167571]
[1724220783655,0.02630649,59678.0,59676.0,0.167571]
[1724220783869,0.00212657,59677.0,59676.0,0.167571]
[1724220784072,0.00212657,59677.0,59676.0,1.2373]
[1724220784245,0.04230649,59678.0,59676.0,1.150129]
[1724220784246,0.03530649,59678.0,59676.0,1.150129]
[1724220784448,0.02630649,59678.0,59677.0,0.839842]
[1724220784653,0.03330649,59678.0,59677.0,0.832842]
[1724220784859,0.03330649,59678.0,59677.0,0.834842]
[1724220785060,0.02630649,59678.0,59677.0,0.830842]
[1724220785470,0.02630649,59678.0,59677.0,0.160568]
[1724220785670,0.02630649,59678.0,59677.0,0.495705]
[1724220786430,0.02830649,59678.0,59677.0,0.495705]
[1724220786635,0.03330649,59678.0,59677.0,0.495705]
[1724220787032,0.03630649,59678.0,59677.0,0.160568]
[1724220787259,0.02630649,59678.0,59677.0,0.160568]
[1724220787585,0.02830649,59678.0,59677.0,0.160568]
[1724220787840,0.02930649,59678.0,59677.0,0.160568]
[1724220788585,0.02830649,59678.0,59677.0,0.160568]
[1724220788945,0.02830649,59678.0,59676.0,0.0804]
[1724220789356,0.03130649,59678.0,59676.0,0.0804]
[1724220789563,0.02630649,59678.0,59677.0,0.000902]
[1724220789978,0.02930649,59678.0,59677.0,0.000902]
[1724220790184,0.09170649,59678.0,59677.0,0.000902]
[1724220790388,0.13303714,59678.0,59677.0,0.000902]
[1724220790596,0.13684384,59678.0,59677.0,0.000902]
[1724220790797,0.13584384,59678.0,59677.0,0.000902]
[1724220791229,0.13684384,59678.0,59677.0,0.000902]
[1724220791450,0.13484384,59678.0,59677.0,0.000902]
[1724220791661,0.13684384,59678.0,59677.0,0.000902]
[1724220792100,0.03111319,59678.0,59677.0,0.000902]
[1724220792310,0.03111319,59678.0,59677.0,0.078302]
[1724220792515,0.02830649,59678.0,59677.0,0.413439]
[1724220792764,0.03130649,59678.0,59677.0,0.581007]
[1724220792975,0.02830649,59678.0,59677.0,0.978644]
[1724220793178,0.02630649,59678.0,59677.0,0.978644]
[1724220793407,0.04430649,59678.0,59677.0,0.644507]
[1724220793616,0.03430649,59678.0,59677.0,0.643507]
[1724220794122,0.02630649,59678.0,59677.0,0.643507]
[1724220794341,0.02830649,59678.0,59677.0,0.643507]
[1724220794747,0.02630649,59678.0,59677.0,0.581007]
[1724220795178,0.02830649,59678.0,59677.0,0.581007]
[1724220795368,0.05455482,59678.0,59677.0,0.581007]
[1724220796194,0.06455482,59678.0,59677.0,0.582007]
[1724220796395,0.05255482,59678.0,59677.0,0.581007]
[1724220796808,0.05555482,59678.0,59677.0,0.581007]
[1724220797010,0.05455482,59678.0,59677.0,0.581007]
[1724220797436,0.06455482,59678.0,59677.0,0.582007]
[1724220797638,0.05255482,59678.0,59677.0,0.916144]
[1724220797839,0.05255482,59678.0,59677.0,0.917144]
[1724220798040,0.07455482,59691.0,59677.0,0.917144]
[1724220798250,0.06840737,59690.0,59679.0,0.502683]
[1724220798449,0.02624737,59689.0,59679.0,0.167562]
[1724220798675,0.02630197,59688.0,59679.0,0.167562]
[1724220798791,0.02624737,59687.0,59679.0,0.167562]
[1724220799041,0.02624737,59687.0,59677.0,0.245869]
[1724220799228,0.01065202,59686.0,59677.0,0.078302]
[1724220799447,0.02829744,59685.0,59677.0,0.24587]
[1724220799659,0.01,59678.0,59677.0,0.001902]
[1724220799878,0.03624737,59678.0,59677.0,0.001902]
[1724220800298,0.03624737,59678.0,59677.0,0.000902]
[1724220800299,0.05880631,59678.0,59677.0,0.000902]
[1724220800709,0.05880631,59678.0,59677.0,0.001902]
[1724220800921,0.08992694,59678.0,59677.0,0.001902]
[1724220801150,0.09792694,59678.0,59677.0,0.000902]
[1724220801998,0.12712694,59678.0,59677.0,0.000902]
[1724220802614,0.12812694,59678.0,59677.0,0.001902]
[1724220802865,0.12712694,59678.0,59677.0,0.001902]
[1724220803079,0.13612694,59678.0,59677.0,0.002902]
[1724220803459,0.12812694,59678.0,59677.0,0.001902]
[1724220803861,0.13612694,59678.0,59677.0,0.002902]
[1724220806209,0.10100631,59678.0,59677.0,0.002902]
[1724220806849,0.07180631,59678.0,59677.0,0.002902]
[1724220808461,0.06955177,59678.0,59677.0,0.002902]
[1724220809076,0.07177666,59678.0,59677.0,0.002902]
[1724220809659,0.07177666,59678.0,59675.0,0.042402]
[1724220809773,0.02624737,59677.0,59675.0,0.042402]
[1724220811138,0.03224737,59677.0,59675.0,0.043402]
[1724220811342,0.02624737,59676.0,59675.0,0.043402]
[1724220811722,0.02624737,59676.0,59675.0,0.210976]
[1724220811924,0.02624737,59676.0,59675.0,0.043402]
[1724220812302,0.02624737,59676.0,59675.0,0.001]
[1724220812576,0.02624737,59676.0,59671.0,0.168485]
[1724220812778,0.09034737,59676.0,59671.0,0.000902]
[1724220812970,0.0761,59676.0,59675.0,0.001]
[1724220813174,0.10235145,59676.0,59675.0,0.001]
[1724220813370,0.10235145,59676.0,59675.0,0.248774]
[1724220813371,0.03825145,59676.0,59675.0,0.248774]
[1724220813610,0.03325145,59676.0,59675.0,0.1419]
[1724220814008,0.03925145,59676.0,59675.0,0.309474]
[1724220814421,0.03325145,59676.0,59675.0,0.309474]
[1724220814801,0.03325145,59676.0,59675.0,0.1419]
[1724220815381,0.03325145,59676.0,59675.0,0.1428031]
[1724220815601,0.03325145,59676.0,59675.0,0.0811031]
[1724220815756,0.033193,59676.0,59675.0,0.0811031]
[1724220815960,0.160993,59676.0,59675.0,0.0019031]
[1724220816226,0.17972274,59676.0,59675.0,0.0019031]
[1724220816505,0.05692274,59676.0,59675.0,0.0019031]
[1724220816863,0.04998119,59676.0,59675.0,0.0019031]
[1724220817083,0.05698119,59676.0,59675.0,0.0019031]
[1724220817358,0.05198119,59676.0,59675.0,0.0009031]
[1724220817784,0.05698119,59676.0,59675.0,0.0019031]
[1724220823149,0.18558119,59676.0,59675.0,0.0019031]
[1724220823347,0.20858119,59676.0,59675.0,0.0019031]
[1724220823524,0.20858119,59676.0,59675.0,0.00027792]
[1724220823525,0.50858119,59676.0,59675.0,0.00027792]
[1724220823731,0.37498119,59676.0,59671.0,0.000902]
[1724220824081,0.4175,59672.0,59671.0,0.000902]
[1724220824271,0.46675145,59672.0,59671.0,0.000902]
[1724220824497,0.56675145,59672.0,59671.0,0.000902]
[1724220824799,0.59306317,59672.0,59671.0,0.000902]
[1724220824926,0.68251532,59672.0,59671.0,0.000902]
[1724220825134,0.57006317,59672.0,59671.0,0.001902]
[1724220826671,0.58406317,59672.0,59671.0,0.000902]
[1724220826789,0.59806317,59672.0,59671.0,0.000902]
[1724220827000,0.64386949,59672.0,59671.0,0.000902]
[1724220827212,0.6806678,59672.0,59671.0,0.000902]
[1724220827425,0.6666678,59672.0,59671.0,0.000902]
[1724220827829,0.6806678,59672.0,59671.0,0.000902]
[1724220828600,0.8482498,59672.0,59671.0,0.000902]
[1724220828820,1.1834148,59672.0,59671.0,0.000902]
[1724220829016,0.2924,59654.0,59651.0,0.0778]
[1724220829226,0.02625145,59653.0,59651.0,0.0778]
[1724220829659,0.05256717,59653.0,59651.0,0.0778]
[1724220829865,0.02625145,59652.0,59651.0,0.0778]
[1724220830069,0.02625145,59652.0,59646.0,0.0777]
[1724220830438,0.03449672,59651.0,59646.0,0.0777]
[1724220830719,0.02625145,59650.0,59646.0,0.0777]
[1724220830978,0.02625145,59652.0,59646.0,0.0777]
[1724220831207,0.02625145,59651.0,59646.0,0.0777]
[1724220831409,0.02625145,59652.0,59646.0,0.0777]
[1724220831539,0.02631572,59653.0,59646.0,0.0777]
[1724220831540,0.02625145,59651.0,59646.0,0.0777]
[1724220831739,0.02625145,59650.0,59646.0,0.0777]
[1724220831939,0.02625145,59652.0,59646.0,0.0777]
[1724220832618,0.03325145,59652.0,59646.0,0.0777]
[1724220832824,0.02625145,59651.0,59646.0,0.0777]
[1724220832972,0.03025145,59651.0,59646.0,0.0777]
[1724220833172,0.02625145,59650.0,59646.0,0.0777]
[1724220833616,0.02625145,59649.0,59646.0,0.0777]
[1724220833818,0.02625145,59648.0,59646.0,0.0777]
[1724220834020,0.02625145,59647.0,59646.0,0.0777]
[1724220834487,0.02625145,59651.0,59646.0,0.0777]
[1724220834686,0.008,59652.0,59646.0,0.0777]
[1724220834687,0.02631657,59647.0,59646.0,0.0777]
[1724220834864,0.05256802,59647.0,59646.0,0.0777]
[1724220835634,0.02631657,59647.0,59646.0,0.0777]
[1724220835837,0.02631657,59647.0,59646.0,0.245355]
[1724220836036,0.05257932,59647.0,59646.0,0.0777]
[1724220836445,0.02731657,59647.0,59646.0,0.0777]
[1724220836641,0.02831657,59647.0,59646.0,0.0777]
[1724220836845,0.02831657,59647.0,59646.0,0.245355]
[1724220837286,0.02731657,59647.0,59646.0,0.245355]
[1724220837437,0.02731657,59647.0,59646.0,0.246355]
[1724220837840,0.02731657,59647.0,59646.0,0.979077]
[1724220838047,0.02731657,59647.0,59646.0,0.978077]
[1724220838493,0.02831657,59647.0,59646.0,0.978077]
[1724220838722,0.02731657,59647.0,59646.0,0.978077]
[1724220839082,0.02931657,59647.0,59646.0,0.978077]
[1724220839773,0.02931657,59647.0,59646.0,0.642766]